[Event "*** MasterClass Titled Tuesday Blitz"]
[Site "Chess.com"]
[Date "2017.07.04"]
[Round "8"]
[White "escher"]
[Black "stuffings101"]
[Result "1-0"]
[WhiteElo "2053"]
[BlackElo "2190"]
[TimeControl "180+2"]
[EndTime "14:51:56 PDT"]
[Termination "escher won on time"]

1. e4 {[%clk 0:03:01.9]} 1... d6 {[%clk 0:03:00.3]} 2. d4 {[%clk 0:03:02.3]}
2... Nf6 {[%clk 0:03:01.5]} 3. Nc3 {[%clk 0:03:01.5]} 3... g6 {[%clk 0:03:02.5]}
4. f4 {[%clk 0:03:02.6]} 4... Bg7 {[%clk 0:03:03.1]} 5. Nf3 {[%clk 0:03:03.7]}
5... O-O {[%clk 0:03:04.2]} 6. Bd3 {[%clk 0:02:58.4]} 6... Na6 {[%clk
0:03:02.5]} 7. a3 {[%clk 0:02:56]} 7... c5 {[%clk 0:02:59.7]} 8. Be3 {[%clk
0:02:52.1]} 8... Bg4 {[%clk 0:02:54.2]} 9. h3 {[%clk 0:02:46.6]} 9... Bxf3
{[%clk 0:02:53.3]} 10. Qxf3 {[%clk 0:02:48.6]} 10... cxd4 {[%clk 0:02:53.7]} 11.
Bxd4 {[%clk 0:02:49.6]} 11... Nc5 {[%clk 0:02:51.1]} 12. Bxc5 {[%clk 0:02:49.7]}
12... dxc5 {[%clk 0:02:51.3]} 13. O-O-O {[%clk 0:02:50.8]} 13... Qc8 {[%clk
0:02:42.2]} 14. e5 {[%clk 0:02:34]} 14... Nd7 {[%clk 0:02:27.7]} 15. g4 {[%clk
0:02:33.1]} 15... e6 {[%clk 0:02:17.4]} 16. h4 {[%clk 0:02:05]} 16... a6 {[%clk
0:02:11.7]} 17. h5 {[%clk 0:01:55.2]} 17... Rd8 {[%clk 0:02:11.2]} 18. hxg6
{[%clk 0:01:50.4]} 18... hxg6 {[%clk 0:02:11.3]} 19. Qh3 {[%clk 0:01:45.3]}
19... c4 {[%clk 0:02:04.5]} 20. Qh7+ {[%clk 0:01:33.6]} 20... Kf8 {[%clk
0:02:03.3]} 21. Bxg6 {[%clk 0:01:15.9]} 21... fxg6 {[%clk 0:01:53.1]} 22. Qxg6
{[%clk 0:01:17.8]} 22... Nc5 {[%clk 0:01:52.2]} 23. Rdf1 {[%clk 0:00:54.1]}
23... Qc7 {[%clk 0:00:54.4]} 24. f5 {[%clk 0:00:48]} 1-0

[Event "*** MasterClass Titled Tuesday Blitz"]
[Site "Chess.com"]
[Date "2017.07.04"]
[Round "8"]
[White "ruvat"]
[Black "ehrenfeld"]
[Result "0-1"]
[WhiteElo "2271"]
[BlackElo "2399"]
[TimeControl "180+2"]
[EndTime "14:52:01 PDT"]
[Termination "ehrenfeld won by resignation"]

1. d4 {[%clk 0:03:01.4]} 1... Nf6 {[%clk 0:03:00.3]} 2. c4 {[%clk 0:03:02.4]}
2... e6 {[%clk 0:03:01.5]} 3. g3 {[%clk 0:03:02.3]} 3... Bb4+ {[%clk 0:03:01.9]}
4. Bd2 {[%clk 0:03:02.6]} 4... a5 {[%clk 0:03:02.6]} 5. Nf3 {[%clk 0:03:03.1]}
5... d6 {[%clk 0:03:03]} 6. Bg2 {[%clk 0:03:03.6]} 6... Nbd7 {[%clk 0:03:02.2]}
7. O-O {[%clk 0:03:03.8]} 7... e5 {[%clk 0:03:03.2]} 8. Nc3 {[%clk 0:03:01.2]}
8... O-O {[%clk 0:03:02.2]} 9. Qc2 {[%clk 0:03:02.2]} 9... Re8 {[%clk
0:03:02.2]} 10. e4 {[%clk 0:02:59]} 10... exd4 {[%clk 0:02:57.8]} 11. Nxd4
{[%clk 0:02:59]} 11... Ne5 {[%clk 0:02:56.2]} 12. b3 {[%clk 0:02:54]} 12... Bc5
{[%clk 0:02:54.8]} 13. Nce2 {[%clk 0:02:43.4]} 13... Bg4 {[%clk 0:02:50.6]} 14.
h3 {[%clk 0:02:29.3]} 14... Bd7 {[%clk 0:02:34.1]} 15. a3 {[%clk 0:02:17.6]}
15... Nc6 {[%clk 0:02:01.8]} 16. Bc3 {[%clk 0:01:58.1]} 16... Qe7 {[%clk
0:01:51]} 17. f3 {[%clk 0:01:34.7]} 17... Nh5 {[%clk 0:01:48.1]} 18. Kh2 {[%clk
0:01:31.5]} 18... Nxg3 {[%clk 0:01:26]} 19. Kxg3 {[%clk 0:01:02.1]} 19... Bxd4
{[%clk 0:01:20]} 20. Nxd4 {[%clk 0:00:58.2]} 20... Qe5+ {[%clk 0:01:15]} 21. f4
{[%clk 0:00:57.9]} 21... Nxd4 {[%clk 0:01:15.8]} 22. Qd3 {[%clk 0:00:43.8]}
22... Ne2+ {[%clk 0:01:11.9]} 23. Qxe2 {[%clk 0:00:42]} 23... Qxc3+ {[%clk
0:01:12.8]} 24. Kh2 {[%clk 0:00:41.7]} 24... Bc6 {[%clk 0:01:07.2]} 25. Rg1
{[%clk 0:00:32.4]} 25... f5 {[%clk 0:01:01.7]} 26. Rac1 {[%clk 0:00:29.9]} 26...
Qf6 {[%clk 0:00:57.9]} 27. e5 {[%clk 0:00:24.1]} 27... dxe5 {[%clk 0:00:58.6]}
28. Bxc6 {[%clk 0:00:19.9]} 28... bxc6 {[%clk 0:00:59.5]} 29. Qg2 {[%clk
0:00:13.7]} 29... exf4 {[%clk 0:00:59.5]} 30. Rcf1 {[%clk 0:00:11.6]} 30... Re4
{[%clk 0:00:59.6]} 0-1

[Event "*** MasterClass Titled Tuesday Blitz"]
[Site "Chess.com"]
[Date "2017.07.04"]
[Round "8"]
[White "FairChess_on_YouTube"]
[Black "SergeiAza"]
[Result "1/2-1/2"]
[WhiteElo "2711"]
[BlackElo "2722"]
[TimeControl "180+2"]
[EndTime "14:52:18 PDT"]
[Termination "Game drawn by repetition"]

1. d4 {[%clk 0:03:01.9]} 1... d5 {[%clk 0:03:00.1]} 2. c4 {[%clk 0:03:01.1]}
2... e6 {[%clk 0:03:00.9]} 3. Nc3 {[%clk 0:03:01]} 3... Be7 {[%clk 0:03:01.5]}
4. Nf3 {[%clk 0:02:58.8]} 4... Nf6 {[%clk 0:03:01.4]} 5. e3 {[%clk 0:03:00.1]}
5... O-O {[%clk 0:03:01.7]} 6. b3 {[%clk 0:03:01]} 6... c5 {[%clk 0:02:58.9]} 7.
Bb2 {[%clk 0:02:59.3]} 7... cxd4 {[%clk 0:02:51.8]} 8. Nxd4 {[%clk 0:02:59.2]}
8... Nc6 {[%clk 0:02:24.3]} 9. Be2 {[%clk 0:02:34.6]} 9... Nxd4 {[%clk 0:02:16]}
10. Qxd4 {[%clk 0:02:36.5]} 10... dxc4 {[%clk 0:02:09.6]} 11. Qxc4 {[%clk
0:02:38.4]} 11... Bd7 {[%clk 0:02:09.8]} 12. O-O {[%clk 0:02:29.9]} 12... Rc8
{[%clk 0:02:07.5]} 13. Qd4 {[%clk 0:02:30.9]} 13... Bc6 {[%clk 0:01:51.6]} 14.
Qxa7 {[%clk 0:02:04.6]} 14... Qd2 {[%clk 0:01:47.4]} 15. Rab1 {[%clk 0:02:05.1]}
15... Ne4 {[%clk 0:01:39.3]} 16. Rfd1 {[%clk 0:01:47.6]} 16... Qc2 {[%clk
0:01:39.3]} 17. Rdc1 {[%clk 0:01:44.3]} 17... Qd2 {[%clk 0:01:39.8]} 18. Qd4
{[%clk 0:01:25.3]} 18... Bf6 {[%clk 0:01:14.8]} 19. Qxd2 {[%clk 0:01:16.5]}
19... Nxd2 {[%clk 0:01:14.7]} 20. Ra1 {[%clk 0:01:17.7]} 20... Rfd8 {[%clk
0:01:09.4]} 21. f3 {[%clk 0:01:07.7]} 21... Nxb3 {[%clk 0:00:56.8]} 22. axb3
{[%clk 0:01:05.5]} 22... Rd2 {[%clk 0:00:57.1]} 23. Rab1 {[%clk 0:00:23]} 23...
Bxc3 {[%clk 0:00:56.6]} 24. Bxc3 {[%clk 0:00:24]} 24... Rxe2 {[%clk 0:00:57]}
25. e4 {[%clk 0:00:22.5]} 25... f6 {[%clk 0:00:51.4]} 26. Bb4 {[%clk 0:00:17.5]}
26... Ra8 {[%clk 0:00:47.3]} 27. Re1 {[%clk 0:00:12.8]} 27... Rc2 {[%clk
0:00:42.2]} 28. Rec1 {[%clk 0:00:13.1]} 28... Re2 {[%clk 0:00:38.2]} 29. Re1
{[%clk 0:00:13.9]} 29... Rc2 {[%clk 0:00:38.5]} 30. Rec1 {[%clk 0:00:15]} 30...
Re2 {[%clk 0:00:39.1]} 31. Re1 {[%clk 0:00:16.1]} 1/2-1/2

[Event "*** MasterClass Titled Tuesday Blitz"]
[Site "Chess.com"]
[Date "2017.07.04"]
[Round "8"]
[White "Iball95"]
[Black "dhanushbharadwaj"]
[Result "1-0"]
[WhiteElo "2526"]
[BlackElo "2355"]
[TimeControl "180+2"]
[EndTime "14:52:23 PDT"]
[Termination "Iball95 won by resignation"]

1. d4 {[%clk 0:03:01.9]} 1... g6 {[%clk 0:02:57.5]} 2. e4 {[%clk 0:03:01]} 2...
Bg7 {[%clk 0:02:57.5]} 3. Nc3 {[%clk 0:03:02]} 3... c6 {[%clk 0:02:46.2]} 4. Nf3
{[%clk 0:03:01.5]} 4... d6 {[%clk 0:02:44.7]} 5. Be2 {[%clk 0:02:57]} 5... Bg4
{[%clk 0:02:43]} 6. O-O {[%clk 0:02:57.2]} 6... Bxf3 {[%clk 0:02:42.9]} 7. Bxf3
{[%clk 0:02:59.1]} 7... Nd7 {[%clk 0:02:44.2]} 8. a4 {[%clk 0:02:58.9]} 8... e5
{[%clk 0:02:27.8]} 9. d5 {[%clk 0:02:49]} 9... cxd5 {[%clk 0:02:19.8]} 10. Nxd5
{[%clk 0:02:50.6]} 10... Ngf6 {[%clk 0:02:14.5]} 11. Bg5 {[%clk 0:02:44.3]}
11... O-O {[%clk 0:02:10.9]} 12. Bg4 {[%clk 0:02:36.7]} 12... Nc5 {[%clk
0:01:50.5]} 13. Re1 {[%clk 0:02:23]} 13... h6 {[%clk 0:01:44.9]} 14. Nxf6+
{[%clk 0:02:17.1]} 14... Bxf6 {[%clk 0:01:45.8]} 15. Bxh6 {[%clk 0:02:17.5]}
15... Bg7 {[%clk 0:01:47.1]} 16. Bc1 {[%clk 0:01:39.8]} 16... Qe7 {[%clk
0:01:35.6]} 17. Qd5 {[%clk 0:01:36.7]} 17... Rfd8 {[%clk 0:01:26.2]} 18. b3
{[%clk 0:01:36.8]} 18... Nd7 {[%clk 0:01:23]} 19. Bxd7 {[%clk 0:01:33.2]} 19...
Rxd7 {[%clk 0:01:23.4]} 20. Ba3 {[%clk 0:01:34.4]} 20... Rc8 {[%clk 0:01:22.8]}
21. c4 {[%clk 0:01:34.5]} 21... Bf8 {[%clk 0:01:23.3]} 22. Rad1 {[%clk
0:01:33.8]} 22... Qe6 {[%clk 0:01:24]} 23. Re3 {[%clk 0:01:31.4]} 23... Qxd5
{[%clk 0:01:23.8]} 24. Rxd5 {[%clk 0:01:32.8]} 24... b6 {[%clk 0:01:25.5]} 25.
Red3 {[%clk 0:01:31]} 25... Rcd8 {[%clk 0:01:26.6]} 26. f3 {[%clk 0:01:22.9]}
26... Kg7 {[%clk 0:01:26.7]} 27. Kf2 {[%clk 0:01:17.2]} 27... Be7 {[%clk
0:01:27.5]} 28. Ke2 {[%clk 0:01:16.3]} 28... f5 {[%clk 0:01:24.8]} 29. Bb2
{[%clk 0:01:11.3]} 29... Kf6 {[%clk 0:01:22.3]} 30. Bxe5+ {[%clk 0:01:10.6]}
30... Ke6 {[%clk 0:01:18.2]} 31. Bg3 {[%clk 0:01:07.8]} 31... fxe4 {[%clk
0:01:19.7]} 32. fxe4 {[%clk 0:01:09.3]} 32... Bf6 {[%clk 0:01:16.8]} 33. Kf3
{[%clk 0:01:02.3]} 33... Bg7 {[%clk 0:01:10.3]} 34. e5 {[%clk 0:00:59.9]} 34...
dxe5 {[%clk 0:01:06.7]} 35. Rxd7 {[%clk 0:01:00.2]} 35... Rxd7 {[%clk
0:01:08.6]} 36. Rxd7 {[%clk 0:01:00.8]} 36... Kxd7 {[%clk 0:01:10.5]} 37. Ke4
{[%clk 0:01:01.6]} 37... Ke6 {[%clk 0:01:12.4]} 38. Bf2 {[%clk 0:01:00.3]} 38...
Bf8 {[%clk 0:01:11.5]} 39. a5 {[%clk 0:01:01.1]} 39... bxa5 {[%clk 0:01:12.1]}
40. Bxa7 {[%clk 0:01:02.4]} 40... Be7 {[%clk 0:01:12.1]} 41. Bb6 {[%clk
0:01:02.6]} 41... Bb4 {[%clk 0:01:11.4]} 42. Bc7 {[%clk 0:01:00.3]} 42... Bc3
{[%clk 0:01:11.2]} 43. h3 {[%clk 0:00:56]} 43... g5 {[%clk 0:01:08.4]} 44. g3
{[%clk 0:00:53.1]} 44... a4 {[%clk 0:00:56.3]} 45. bxa4 {[%clk 0:00:52.5]} 1-0

[Event "*** MasterClass Titled Tuesday Blitz"]
[Site "Chess.com"]
[Date "2017.07.04"]
[Round "8"]
[White "platy3"]
[Black "JeffReinberg"]
[Result "0-1"]
[WhiteElo "2601"]
[BlackElo "2591"]
[TimeControl "180+2"]
[EndTime "14:52:51 PDT"]
[Termination "JeffReinberg won by resignation"]

1. e4 {[%clk 0:02:54.9]} 1... c5 {[%clk 0:02:55.5]} 2. Nf3 {[%clk 0:02:55.3]}
2... g6 {[%clk 0:02:56.4]} 3. d4 {[%clk 0:02:51.8]} 3... cxd4 {[%clk 0:02:58.3]}
4. Nxd4 {[%clk 0:02:53.4]} 4... Nf6 {[%clk 0:02:58.7]} 5. Nc3 {[%clk 0:02:52.8]}
5... d6 {[%clk 0:02:58.7]} 6. Be3 {[%clk 0:02:53.8]} 6... Bg7 {[%clk 0:02:55.8]}
7. f3 {[%clk 0:02:55.3]} 7... O-O {[%clk 0:02:52.4]} 8. Qd2 {[%clk 0:02:56.7]}
8... Nc6 {[%clk 0:02:52]} 9. O-O-O {[%clk 0:02:56.8]} 9... d5 {[%clk 0:02:50.5]}
10. Qe1 {[%clk 0:02:52.5]} 10... e5 {[%clk 0:02:41.1]} 11. Nxc6 {[%clk
0:02:53.3]} 11... bxc6 {[%clk 0:02:41]} 12. exd5 {[%clk 0:02:55]} 12... Nxd5
{[%clk 0:02:42.2]} 13. Bc4 {[%clk 0:02:54.5]} 13... Be6 {[%clk 0:02:39.5]} 14.
Kb1 {[%clk 0:02:53.5]} 14... Qb8 {[%clk 0:02:29]} 15. Bc5 {[%clk 0:02:48]} 15...
Rd8 {[%clk 0:02:26.8]} 16. Ne4 {[%clk 0:02:47.9]} 16... a5 {[%clk 0:02:20.8]}
17. h4 {[%clk 0:02:45.4]} 17... a4 {[%clk 0:02:17.7]} 18. h5 {[%clk 0:02:46.4]}
18... a3 {[%clk 0:02:07.8]} 19. b3 {[%clk 0:02:43.8]} 19... Nf4 {[%clk 0:02:02]}
20. Bxe6 {[%clk 0:02:40.7]} 20... Rxd1+ {[%clk 0:01:58.9]} 21. Qxd1 {[%clk
0:02:41.3]} 21... Nxe6 {[%clk 0:02:00.8]} 22. hxg6 {[%clk 0:02:42.2]} 22... hxg6
{[%clk 0:01:59.3]} 23. Be7 {[%clk 0:02:43.1]} 23... f5 {[%clk 0:01:56.7]} 24.
Qd7 {[%clk 0:02:12.6]} 24... Qc8 {[%clk 0:01:57.2]} 25. Nf6+ {[%clk 0:01:56.6]}
25... Kf7 {[%clk 0:01:56.6]} 26. Qd6 {[%clk 0:01:35.1]} 26... Bxf6 {[%clk
0:01:51.3]} 27. Bxf6 {[%clk 0:01:07.9]} 27... Kxf6 {[%clk 0:01:53.2]} 28. g4
{[%clk 0:01:08.5]} 28... Qd8 {[%clk 0:01:50.6]} 29. g5+ {[%clk 0:01:08.5]} 29...
Kf7 {[%clk 0:01:41.8]} 30. Qxe5 {[%clk 0:01:07]} 30... Ng7 {[%clk 0:01:31.6]}
31. Qc3 {[%clk 0:00:58.7]} 31... Qxg5 {[%clk 0:01:20.5]} 32. Qxc6 {[%clk
0:00:57.6]} 32... Re8 {[%clk 0:01:15.5]} 33. Qb7+ {[%clk 0:00:50]} 33... Qe7
{[%clk 0:01:13.3]} 34. Qd5+ {[%clk 0:00:50.5]} 34... Qe6 {[%clk 0:01:08.3]} 35.
Qd2 {[%clk 0:00:46.3]} 35... Qe5 {[%clk 0:01:01.9]} 36. c3 {[%clk 0:00:45.2]}
36... Qe2 {[%clk 0:01:00.1]} 37. Rd1 {[%clk 0:00:27.2]} 37... Qxf3 {[%clk
0:00:53.7]} 38. Qd5+ {[%clk 0:00:19.8]} 38... Qxd5 {[%clk 0:00:53.1]} 39. Rxd5
{[%clk 0:00:21.7]} 39... f4 {[%clk 0:00:54.5]} 40. b4 {[%clk 0:00:20]} 40... Re2
{[%clk 0:00:48.4]} 41. Rd4 {[%clk 0:00:20.3]} 41... g5 {[%clk 0:00:47.4]} 0-1

[Event "*** MasterClass Titled Tuesday Blitz"]
[Site "Chess.com"]
[Date "2017.07.04"]
[Round "8"]
[White "jeaston1"]
[Black "Rodalquilar"]
[Result "0-1"]
[WhiteElo "2054"]
[BlackElo "2512"]
[TimeControl "180+2"]
[EndTime "14:53:01 PDT"]
[Termination "Rodalquilar won on time"]

1. d4 {[%clk 0:03:01.9]} 1... Nf6 {[%clk 0:02:53.8]} 2. c4 {[%clk 0:02:58.7]}
2... e6 {[%clk 0:02:51.9]} 3. g3 {[%clk 0:02:58.1]} 3... d5 {[%clk 0:02:51.7]}
4. Nf3 {[%clk 0:02:53.9]} 4... Be7 {[%clk 0:02:47]} 5. Bg2 {[%clk 0:02:53.3]}
5... O-O {[%clk 0:02:48.2]} 6. O-O {[%clk 0:02:53.4]} 6... dxc4 {[%clk
0:02:47.7]} 7. Qc2 {[%clk 0:02:53.3]} 7... b6 {[%clk 0:02:48.9]} 8. Ne5 {[%clk
0:01:48.7]} 8... Qxd4 {[%clk 0:02:49]} 9. Bxa8 {[%clk 0:01:48.6]} 9... Qxe5
{[%clk 0:02:50.1]} 10. Bf4 {[%clk 0:01:47.5]} 10... Qh5 {[%clk 0:02:48.4]} 11.
Bg2 {[%clk 0:01:46.9]} 11... e5 {[%clk 0:02:35.8]} 12. Bf3 {[%clk 0:01:33]}
12... Ng4 {[%clk 0:02:16]} 13. Bxg4 {[%clk 0:01:32.4]} 13... Bxg4 {[%clk
0:02:16.9]} 14. f3 {[%clk 0:01:19.4]} 14... Bc5+ {[%clk 0:01:15]} 15. Kh1 {[%clk
0:01:15.8]} 15... Bf5 {[%clk 0:00:59.3]} 16. Qxc4 {[%clk 0:01:06]} 16... exf4
{[%clk 0:00:57.6]} 17. Qxf4 {[%clk 0:01:04.8]} 17... Bh3 {[%clk 0:00:40.7]} 18.
Rd1 {[%clk 0:00:57.2]} 18... Bd6 {[%clk 0:00:41.5]} 19. Qe3 {[%clk 0:00:46.7]}
19... Bc5 {[%clk 0:00:31.9]} 20. Qe4 {[%clk 0:00:36.9]} 20... Bf5 {[%clk
0:00:23.7]} 21. Qf4 {[%clk 0:00:27]} 21... Re8 {[%clk 0:00:20.4]} 22. Nc3 {[%clk
0:00:19.9]} 22... Bd6 {[%clk 0:00:18.9]} 23. Rxd6 {[%clk 0:00:19.6]} 23... cxd6
{[%clk 0:00:20]} 24. g4 {[%clk 0:00:20.9]} 24... Qh4 {[%clk 0:00:18]} 25. Qxf5
{[%clk 0:00:21.8]} 25... Qf2 {[%clk 0:00:16.5]} 26. Qb5 {[%clk 0:00:17.6]} 26...
Qe3 {[%clk 0:00:11.9]} 27. Rd1 {[%clk 0:00:15.5]} 27... h6 {[%clk 0:00:09.9]}
28. Qd3 {[%clk 0:00:11.6]} 28... Qf2 {[%clk 0:00:08.5]} 29. Qxd6 {[%clk
0:00:11.6]} 29... Na6 {[%clk 0:00:07.5]} 30. Qd7 {[%clk 0:00:11.3]} 30... Rxe2
{[%clk 0:00:05.5]} 0-1

[Event "*** MasterClass Titled Tuesday Blitz"]
[Site "Chess.com"]
[Date "2017.07.04"]
[Round "8"]
[White "Gabrielian_Artur"]
[Black "A-Fier"]
[Result "1-0"]
[WhiteElo "2572"]
[BlackElo "2553"]
[TimeControl "180+2"]
[EndTime "14:53:04 PDT"]
[Termination "Gabrielian_Artur won by resignation"]

1. e4 {[%clk 0:03:01.9]} 1... c5 {[%clk 0:03:00.3]} 2. c3 {[%clk 0:03:03]} 2...
d5 {[%clk 0:03:00.2]} 3. exd5 {[%clk 0:03:04.2]} 3... Qxd5 {[%clk 0:03:02.1]} 4.
Nf3 {[%clk 0:03:05.4]} 4... Nf6 {[%clk 0:03:03.2]} 5. Na3 {[%clk 0:03:06.6]}
5... Nc6 {[%clk 0:02:58.2]} 6. Nc2 {[%clk 0:03:05.6]} 6... e6 {[%clk 0:02:58.8]}
7. d4 {[%clk 0:03:05.6]} 7... Qd8 {[%clk 0:02:59.1]} 8. Bb5 {[%clk 0:03:04.6]}
8... Bd7 {[%clk 0:02:59.6]} 9. O-O {[%clk 0:03:04.9]} 9... Be7 {[%clk
0:02:59.8]} 10. dxc5 {[%clk 0:03:00.4]} 10... Bxc5 {[%clk 0:03:00.6]} 11. Bg5
{[%clk 0:03:01.3]} 11... h6 {[%clk 0:02:59.3]} 12. Bh4 {[%clk 0:03:00]} 12...
Be7 {[%clk 0:02:57.9]} 13. Qe2 {[%clk 0:02:58.5]} 13... O-O {[%clk 0:02:57]} 14.
Rad1 {[%clk 0:02:58.9]} 14... Qc8 {[%clk 0:02:57.9]} 15. Rfe1 {[%clk 0:02:57.2]}
15... a6 {[%clk 0:02:58.9]} 16. Bd3 {[%clk 0:02:57.4]} 16... Qc7 {[%clk
0:02:56.4]} 17. Bg3 {[%clk 0:02:57.7]} 17... Qb6 {[%clk 0:02:53.2]} 18. Ne5
{[%clk 0:02:57.2]} 18... Nxe5 {[%clk 0:02:53.5]} 19. Bxe5 {[%clk 0:02:58.2]}
19... Qxb2 {[%clk 0:02:47.5]} 20. Rb1 {[%clk 0:02:21.6]} 20... Qxa2 {[%clk
0:02:48.4]} 21. Rxb7 {[%clk 0:02:22.5]} 21... Rad8 {[%clk 0:02:42.3]} 22. Bxa6
{[%clk 0:02:09.1]} 22... Qd5 {[%clk 0:02:36]} 23. Nb4 {[%clk 0:02:03.2]} 23...
Qa5 {[%clk 0:02:32]} 24. Bc7 {[%clk 0:02:03.5]} 24... Qc5 {[%clk 0:02:31.4]} 25.
Bxd8 {[%clk 0:02:04.4]} 25... Rxd8 {[%clk 0:02:33.3]} 26. Qc4 {[%clk 0:01:58.7]}
26... Qg5 {[%clk 0:02:31.2]} 27. h4 {[%clk 0:01:56.2]} 27... Qg6 {[%clk
0:02:31.4]} 28. Bb5 {[%clk 0:01:52.6]} 28... Rc8 {[%clk 0:02:31.7]} 29. Nc6
{[%clk 0:01:25.5]} 29... Bxc6 {[%clk 0:02:29.7]} 30. Bxc6 {[%clk 0:01:26]} 30...
Bd6 {[%clk 0:02:30.4]} 31. Rd1 {[%clk 0:01:20.4]} 31... Be5 {[%clk 0:02:26.6]}
32. Qb5 {[%clk 0:01:10.5]} 32... Qg4 {[%clk 0:02:24.9]} 33. Bf3 {[%clk
0:01:07.4]} 33... Qf4 {[%clk 0:02:25]} 34. Kf1 {[%clk 0:00:43.4]} 34... Bxc3
{[%clk 0:02:23]} 35. Qd3 {[%clk 0:00:36.8]} 35... Qxh4 {[%clk 0:02:20.5]} 36. g3
{[%clk 0:00:34.6]} 36... Qa4 {[%clk 0:02:19.8]} 37. Kg2 {[%clk 0:00:32.8]} 37...
Ba5 {[%clk 0:02:15.7]} 38. Rdb1 {[%clk 0:00:32.5]} 38... g6 {[%clk 0:02:09.5]}
39. Ra7 {[%clk 0:00:32.2]} 39... Rc5 {[%clk 0:01:49.7]} 40. Rb8+ {[%clk
0:00:26.5]} 40... Kg7 {[%clk 0:01:50.5]} 41. Rbb7 {[%clk 0:00:27.7]} 41... Qe8
{[%clk 0:01:42.4]} 42. Qa3 {[%clk 0:00:24.3]} 42... Rf5 {[%clk 0:01:24.8]} 43.
Rxa5 {[%clk 0:00:24.4]} 43... Nd5 {[%clk 0:01:25.4]} 44. Bxd5 {[%clk 0:00:22.9]}
44... exd5 {[%clk 0:01:26.3]} 45. Qc3+ {[%clk 0:00:23.5]} 45... Kh7 {[%clk
0:01:27]} 46. Qd4 {[%clk 0:00:23]} 46... Qd8 {[%clk 0:01:24.2]} 47. Raa7 {[%clk
0:00:21.1]} 47... Qe8 {[%clk 0:01:25.2]} 48. g4 {[%clk 0:00:19]} 1-0

[Event "*** MasterClass Titled Tuesday Blitz"]
[Site "Chess.com"]
[Date "2017.07.04"]
[Round "8"]
[White "stalyansky"]
[Black "MarshKnight"]
[Result "0-1"]
[WhiteElo "2227"]
[BlackElo "2149"]
[TimeControl "180+2"]
[EndTime "14:53:34 PDT"]
[Termination "MarshKnight won by checkmate"]

1. e4 {[%clk 0:03:01.9]} 1... e5 {[%clk 0:02:59.9]} 2. Nf3 {[%clk 0:03:02.5]}
2... Nc6 {[%clk 0:03:01.1]} 3. Bb5 {[%clk 0:03:03.9]} 3... f5 {[%clk 0:03:02.5]}
4. Nc3 {[%clk 0:03:02.4]} 4... fxe4 {[%clk 0:03:03.7]} 5. Nxe4 {[%clk 0:03:03]}
5... Nf6 {[%clk 0:03:05.3]} 6. Qe2 {[%clk 0:03:03.8]} 6... d5 {[%clk 0:03:06.2]}
7. Nxf6+ {[%clk 0:03:04.3]} 7... gxf6 {[%clk 0:03:08.1]} 8. d4 {[%clk
0:03:05.7]} 8... Bg7 {[%clk 0:03:09.7]} 9. dxe5 {[%clk 0:03:07.2]} 9... O-O
{[%clk 0:03:11.3]} 10. e6 {[%clk 0:03:08.7]} 10... Re8 {[%clk 0:03:11.9]} 11.
Be3 {[%clk 0:02:33.2]} 11... Bxe6 {[%clk 0:02:56]} 12. O-O {[%clk 0:02:14.9]}
12... Qe7 {[%clk 0:02:41.5]} 13. Rfe1 {[%clk 0:02:03.3]} 13... Bg4 {[%clk
0:02:25.6]} 14. h3 {[%clk 0:02:02.3]} 14... Bh5 {[%clk 0:02:26.3]} 15. g4 {[%clk
0:01:55.2]} 15... Bg6 {[%clk 0:02:26.8]} 16. Qd2 {[%clk 0:01:42.5]} 16... Qf7
{[%clk 0:02:02.7]} 17. c3 {[%clk 0:00:51.7]} 17... a6 {[%clk 0:01:53.2]} 18. Bd3
{[%clk 0:00:51.4]} 18... Bxd3 {[%clk 0:01:37.6]} 19. Qxd3 {[%clk 0:00:51.5]}
19... Ne5 {[%clk 0:01:38.6]} 20. Qd1 {[%clk 0:00:47.8]} 20... f5 {[%clk
0:01:24.1]} 21. Ng5 {[%clk 0:00:39.5]} 21... Qg6 {[%clk 0:01:21.9]} 22. Qxd5+
{[%clk 0:00:38.8]} 22... Kh8 {[%clk 0:01:13.5]} 23. f4 {[%clk 0:00:34.6]} 23...
h6 {[%clk 0:00:36.6]} 24. Bd4 {[%clk 0:00:12.9]} 24... Rad8 {[%clk 0:00:29]} 25.
Qxb7 {[%clk 0:00:12.2]} 25... hxg5 {[%clk 0:00:21.1]} 26. Bxe5 {[%clk
0:00:11.6]} 26... Bxe5 {[%clk 0:00:21.6]} 27. Rxe5 {[%clk 0:00:09.7]} 27... Rxe5
{[%clk 0:00:22.2]} 28. Qxc7 {[%clk 0:00:05.2]} 28... Red5 {[%clk 0:00:19.4]} 29.
Re1 {[%clk 0:00:05.2]} 29... R5d7 {[%clk 0:00:15.3]} 30. Qe5+ {[%clk 0:00:05.4]}
30... Qg7 {[%clk 0:00:15.2]} 31. Qxf5 {[%clk 0:00:06.3]} 31... gxf4 {[%clk
0:00:16.1]} 32. Qh5+ {[%clk 0:00:06.7]} 32... Kg8 {[%clk 0:00:15.9]} 33. g5
{[%clk 0:00:06.1]} 33... Rd5 {[%clk 0:00:15.2]} 34. Kf2 {[%clk 0:00:04.2]} 34...
Qxg5 {[%clk 0:00:11.5]} 35. Rg1 {[%clk 0:00:03.1]} 35... Rd2+ {[%clk 0:00:10.7]}
36. Kf3 {[%clk 0:00:03.6]} 36... R8d3+ {[%clk 0:00:11.1]} 37. Ke4 {[%clk
0:00:02.4]} 37... Re3# {[%clk 0:00:11.4]} 0-1